lending/lending_fUSD_20250318
["ID","MTS","AMOUNT","RATE_DAILY","PERIOD"]
[356345272,1742310637944,-500.0,9.672e-05,2]
[356345273,1742310637954,-500.0,9.672e-05,2]
[356345274,1742310637965,-205.69,9.672e-05,2]
[356345275,1742310637976,-348.2763605,9.7e-05,2]
[356345276,1742310637986,-156.39,9.871e-05,2]
[356345277,1742310637996,-296.1511,9.9e-05,2]
[356345278,1742310638007,-500.0,9.9e-05,2]
[356345279,1742310638016,-2878.4599,9.9e-05,2]
[356345280,1742310638026,-1213.9568,9.9e-05,2]
[356345281,1742310638035,-5774.4595,9.9e-05,2]
[356345282,1742310638045,-5467.586457,9.9e-05,2]
[356345283,1742310638054,-350.27384661,9.973e-05,2]
[356345284,1742310638064,-151.0,9.999e-05,2]
[356345285,1742310638074,-1287.627,9.999e-05,2]
[356345286,1742310638084,-1568.15572032,9.999e-05,2]
[356345287,1742310638097,-1028.59459678,9.999e-05,2]
[356345289,1742310638108,-14.23495975,9.999e-05,2]
[356345290,1742310638121,-229.49583901,9.999e-05,2]
[356345291,1742310638131,-833.64148539,9.999e-05,2]
[356345293,1742310640191,-1057.45682619,9.999e-05,2]
[356345294,1742310640204,-1030.72863253,9.999e-05,2]
[356345295,1742310640214,-660.90729245,0.0001,2]
[356345296,1742310640227,-1579.43175752,0.0001,2]
[356345297,1742310640239,-368.16999,0.0001,2]
[356345298,1742310640305,-525.30962019,0.0001,2]
[356345315,1742310643044,-604.79948188,0.0001,2]
[356345316,1742310643056,-189984.3143584,0.0001,2]
[356345317,1742310643066,-683.0,0.0001,2]
[356345318,1742310643075,-374777.28874824,0.0001,2]
[356345319,1742310643206,-8004.96087241,0.0001,2]
[356345322,1742310644550,-40976.79,0.0001,2]
[356345330,1742310990703,200.0,8.743e-05,2]
[356345331,1742311012381,500.0,0.000102,14]
[356345332,1742311046821,164.96,8.747e-05,2]
[356345334,1742311165466,150.0,9.562e-05,7]
[356345335,1742311233564,1045.43,8.749e-05,2]
[356345336,1742311285118,23900.0,8.747e-05,2]
[356345337,1742311319546,250.0,8.738e-05,2]
[356345338,1742311470804,294.24,8.766e-05,2]
[356345339,1742311550709,164.90676282,8.722e-05,2]
[356345340,1742311571794,1448.31,8.219e-05,2]
[356345344,1742311650536,1000.0,8.838e-05,2]
[356345358,1742311799559,-158.13166588,9e-05,2]
[356345372,1742311832032,-91.86833412,9e-05,2]
[356345374,1742311832044,-172.08,9.101e-05,2]
[356345376,1742311832057,-154.97,9.185e-05,2]
[356345378,1742311832068,-154.97,9.212e-05,2]
[356345379,1742311832078,-154.97,9.239e-05,2]
[356345380,1742311832088,-154.97,9.266e-05,2]
[356345381,1742311832099,-154.97,9.293e-05,2]
[356345382,1742311832109,-154.97,9.32e-05,2]
[356345383,1742311832119,-154.97,9.347e-05,2]
[356345384,1742311832131,-154.97,9.374e-05,2]
[356345385,1742311832142,-154.97,9.401e-05,2]
[356345386,1742311832152,-595.82163588,9.428e-05,2]
[356345387,1742311832164,-20.92128749,9.428e-05,2]
[356345388,1742311832175,-163.33020747,9.428e-05,2]
[356345389,1742311832185,-934.13172556,9.428e-05,2]
[356345390,1742311832195,-154.97,9.428e-05,2]
[356345391,1742311832206,-154.97,9.455e-05,2]
[356345392,1742311832215,-154.97,9.482e-05,2]
[356345393,1742311832226,-170.89,9.487e-05,2]
[356345394,1742311832236,-154.97,9.509e-05,2]
[356345395,1742311832247,-154.97,9.536e-05,2]
[356345396,1742311832257,-154.97,9.563e-05,2]
[356345397,1742311832267,-154.97,9.59e-05,2]
[356345398,1742311832277,-172.08,9.602e-05,2]
[356345399,1742311832288,-154.97,9.617e-05,2]
[356345400,1742311832298,-154.97,9.644e-05,2]
[356345401,1742311832309,-135.57346007,9.7e-05,2]
[356345402,1742311832321,-215.66727973,9.7e-05,2]
[356345403,1742311832331,-91.64551027,9.756e-05,2]
[356345404,1742311832367,-75.33448973,9.756e-05,2]
[356345405,1742311832377,-948.7537,9.8e-05,2]
[356345406,1742311832387,-150.0,9.861e-05,2]
[356345407,1742311832398,-294.24,9.861e-05,2]
[356345408,1742311832407,-150.0,9.892e-05,2]
[356345409,1742311832419,-150.0,9.893e-05,2]
[356345410,1742311832430,-150.0,9.896e-05,2]
[356345411,1742311832440,-150.0,9.899e-05,2]
[356345412,1742311832449,-1318.6226,9.9e-05,2]
[356345413,1742311832459,-353.3732,9.9e-05,2]
[356345414,1742311832468,-500.0,9.9e-05,2]
[356345415,1742311832478,-5845.90863476,9.9e-05,2]
[356345416,1742311832488,-5706.5085,9.9e-05,2]
[356345417,1742311832498,-223.3154,9.9e-05,2]
[356345418,1742311832508,-313.6676,9.9e-05,2]
[356345419,1742311832518,-1162.7386,9.9e-05,2]
[356345420,1742311832529,-2997.9331,9.9e-05,2]
[356345421,1742311832539,-11258.9935,9.9e-05,2]
[356345422,1742311832549,-1000.0,9.9e-05,2]
[356345423,1742311832559,-4214.18896854,9.908e-05,2]
[356345424,1742311832569,-150.0,9.92e-05,2]
[356345425,1742311832579,-189.85738911,9.926e-05,2]
[356345426,1742311832588,-150.0,9.926e-05,2]
[356345427,1742311832598,-150.0,9.926e-05,2]
[356345428,1742311832608,-150.0,9.927e-05,2]
[356345429,1742311832618,-150.0,9.928e-05,2]
[356345430,1742311832629,-150.0,9.93e-05,2]
[356345431,1742311832639,-150.0,9.937e-05,2]
[356345432,1742311832649,-1000.0,9.943e-05,2]
[356345433,1742311832659,-150.0,9.945e-05,2]
[356345434,1742311832669,-150.0,9.946e-05,2]
[356345435,1742311832679,-1000.0,9.948e-05,2]
[356345436,1742311832689,-150.0,9.951e-05,2]
[356345437,1742311832699,-150.0,9.954e-05,2]
[356345438,1742311832709,-150.0,9.957e-05,2]
[356345439,1742311832719,-150.0,9.957e-05,2]
[356345440,1742311832729,-150.0,9.963e-05,2]
[356345441,1742311832739,-503.00091939,9.973e-05,2]
[356345442,1742311832749,-260.89142915,9.973e-05,2]
[356345443,1742311832759,-150.0,9.981e-05,2]
[356345444,1742311832769,-150.0,9.983e-05,2]
[356345445,1742311832779,-150.0,9.985e-05,2]
[356345446,1742311832788,-150.0,9.986e-05,2]
[356345447,1742311832799,-150.0,9.986e-05,2]
[356345448,1742311832809,-150.0,9.987e-05,2]
[356345449,1742311832818,-3302.4183133,9.99e-05,2]
[356345450,1742311832828,-150.0,9.991e-05,2]
[356345451,1742311832839,-150.0,9.992e-05,2]
[356345452,1742311832849,-150.0,9.996e-05,2]
[356345453,1742311832859,-343.96770859,9.999e-05,2]
[356345454,1742311832868,-151.0,9.999e-05,2]
[356345455,1742311832878,-2006.8214468,9.999e-05,2]
[356345456,1742311832888,-150.0,9.999e-05,2]
[356345457,1742311832897,-167.35259783,9.999e-05,2]
[356345458,1742311832907,-167.35259783,9.999e-05,2]
[356345459,1742311832916,-445.17545416,9.999e-05,2]
[356345460,1742311832927,-614.0,0.0001,2]
[356345461,1742311832936,-2077.7639033,0.0001,2]
[356345462,1742311832949,-1284.34236782,0.0001,2]
[356345468,1742311838090,-263.4305548,9.7e-05,2]
[356345469,1742311838101,-208.60478656,9.9e-05,2]
[356345470,1742311838114,-786.20276922,9.9e-05,2]
[356345471,1742311838137,-1057.62484422,9.9e-05,2]
[356345472,1742311838147,-78.11493933,0.0001,2]
[356345473,1742311838186,-418.59897456,0.0001,2]
[356345474,1742311838241,-28148.47337791,0.0001,2]
[356345475,1742311838252,-326.86514012,0.0001,2]
[356345476,1742311838262,-1174059.97097689,0.0001,2]
[356345477,1742311838274,-410690.41628806,0.0001,2]
[356345566,1742311843199,-768.09376526,0.0001,2]
[356345567,1742311843334,-6065.24096851,0.0001,2]
[356345750,1742311846374,-544.0,0.0001,2]
[356345751,1742311846385,-1742225.97161085,0.0001,2]
[356345754,1742311846401,-872143.55827347,0.0001,2]
[356345756,1742311846413,-905.46149146,0.0001,2]
[356345976,1742311900821,695.03784,0.0001045,3]
[356345977,1742312374411,4052.86770054,0.0001,4]
[356345978,1742312375941,-1000.0,0.000215,30]
[356345979,1742312383802,-1000.0,0.000215,30]
[356345980,1742312393510,-1000.0,0.000215,30]
[356345981,1742312396607,-1000.0,0.000215,30]
[356345982,1742312506947,400.0,9.8e-05,3]
[356345983,1742312509041,900.0,9.9e-05,3]
[356345984,1742312511126,1400.0,0.0001,3]
[356345985,1742312670441,1375.89,8.219e-05,2]
[356345986,1742312706076,-300.0,8.982e-05,2]
[356345987,1742312710782,-166.66,8.937e-05,2]
[356345991,1742312765688,1000.0,8.879e-05,2]
[356345995,1742312858770,300.0,9.8e-05,3]
[356345996,1742312860914,700.0,9.9e-05,3]
[356345997,1742312863015,1000.0,0.0001,3]
[356345999,1742313001237,23900.0,8.833e-05,2]
[356346026,1742313032639,-33.44676563,8.937e-05,2]
[356346027,1742313032649,-250.0,8.959e-05,2]
[356346028,1742313032659,-222.71,8.982e-05,2]
[356346029,1742313032668,-250.0,8.991e-05,2]
[356346030,1742313032678,-250.0,9.001e-05,2]
[356346031,1742313032687,-170.89,9.042e-05,2]
[356346032,1742313032696,-200.0,9.055e-05,2]
[356346033,1742313032706,-168.16,9.122e-05,2]
[356346034,1742313032715,-167.22,9.395e-05,2]
[356346035,1742313032725,-167.22,9.462e-05,2]
[356346036,1742313032734,-163.33020746,9.529e-05,2]
[356346037,1742313032744,-167.22,9.529e-05,2]
[356346038,1742313032754,-150.0,9.562e-05,2]
[356346040,1742313032765,-167.22,9.596e-05,2]
[356346042,1742313032774,-167.22,9.663e-05,2]
[356346044,1742313032783,-197.5729161,9.7e-05,2]
[356346046,1742313032793,-59.60355092,9.73e-05,2]
[356346048,1742313032806,-107.61644908,9.73e-05,2]
[356346050,1742313032815,-167.22,9.797e-05,2]
[356346052,1742313032825,-150.0,9.8e-05,2]
[356346056,1742313032834,-250.0,9.831e-05,2]
[356346059,1742313032843,-167.22,9.865e-05,2]
[356346062,1742313032854,-1030.102,9.899e-05,2]
[356346065,1742313032863,-300.0,9.899e-05,2]
[356346068,1742313032873,-1000.0,9.9e-05,2]
[356346070,1742313032883,-2461.58325146,9.9e-05,2]
[356346072,1742313032895,-10858.38829139,9.9e-05,2]
[356346075,1742313032906,-404.32280446,9.9e-05,2]
[356346077,1742313032918,-295.36203544,9.9e-05,2]
[356346079,1742313032929,-675.3,9.9e-05,2]
[356346081,1742313032940,-11115.21061725,9.9e-05,2]
[356346083,1742313032949,-261.3165,9.9e-05,2]
[356346085,1742313032959,-2142.54067572,9.9e-05,2]
[356346087,1742313032968,-2142.54067572,9.9e-05,2]
[356346089,1742313032978,-1926.59360598,9.9e-05,2]
[356346109,1742313038286,-573.40639402,9.9e-05,2]
[356346110,1742313038295,-51.09360598,9.9e-05,2]
[356346111,1742313038307,-6045.09329402,9.9e-05,2]
[356346112,1742313038317,-150.0,9.916e-05,2]
[356346113,1742313038326,-165.65079276,9.973e-05,2]
[356346114,1742313038336,-1000.0,9.989e-05,2]
[356346115,1742313038346,-500.0,9.998e-05,2]
[356346126,1742313038638,-500.0,9.998e-05,2]
[356346127,1742313038648,-399.82241094,9.998e-05,2]
[356346129,1742313038658,-1707.59173855,9.999e-05,2]
[356346131,1742313038667,-547.0,0.0001,2]
[356346133,1742313038677,-59454.13116156,0.0001,2]
[356346136,1742313038688,-922.45076136,0.0001,2]
[356346138,1742313038700,-8336.2132792,0.0001,2]
[356346139,1742313038711,-17176.82236859,0.0001,2]
[356346140,1742313038722,-6428.93255257,0.0001,2]
[356346141,1742313038741,-418.425,0.0001,2]
[356346142,1742313038753,-1268.98,0.0001,2]
[356346143,1742313038764,-16704.38076902,0.0001,2]
[356346144,1742313038776,-2831.10000001,0.0001,2]
[356346148,1742313040437,-324856.41595549,0.0001,2]
[356346149,1742313040449,-57399.14758375,0.0001,2]
[356346150,1742313040461,-41398.36523991,0.0001,2]
[356346151,1742313040562,-2399.94,0.0001,2]
[356346152,1742313040685,-986.031,0.0001,2]
[356346153,1742313040697,-3988.45,0.0001,2]
[356346154,1742313040709,-50438.40000002,0.0001,2]
[356346155,1742313040832,-1002.1202,0.0001,2]
[356346156,1742313040844,-2025.43,0.0001,2]
[356346157,1742313040931,-2207.65726638,0.0001,2]
[356346165,1742313044438,-502.0,0.0001,2]
[356346166,1742313044448,-339.23567221,0.0001,2]
[356346167,1742313044543,-4240.0,0.0001,2]
[356346168,1742313044555,-299.2290103,0.0001,2]
[356346169,1742313044567,-800.01,0.0001,2]
[356346171,1742313045886,-2810.63659159,0.0001,2]
[356346196,1742313046380,-365.9352,0.0001,2]
[356346206,1742313046481,-101270.66542085,0.0001,2]
[356346209,1742313046495,-7645.03606955,0.0001,2]
[356346231,1742313046723,-530.76808,0.0001,2]
[356346233,1742313046735,-267.81205149,0.0001,2]
[356346287,1742313136570,749.42527,0.0001045,3]
[356346292,1742314040061,200.0,9.9e-05,3]
[356346293,1742314042887,500.0,0.0001,3]
[356346311,1742314232405,-250.0,9e-05,2]
[356346312,1742314232416,-150.0,9.088e-05,2]
[356346313,1742314232426,-250.0,9.175e-05,2]
[356346314,1742314232436,-250.0,9.57e-05,2]
[356346315,1742314232446,-197.5729162,9.7e-05,2]
[356346316,1742314232455,-500.0,9.7e-05,2]
[356346317,1742314232465,-297.55,9.7e-05,2]
[356346318,1742314232475,-5.32651026,9.7e-05,2]
[356346319,1742314232487,-397.13525974,9.7e-05,2]
[356346320,1742314232497,-250.0,9.883e-05,2]
[356346321,1742314232507,-825.01231182,9.9e-05,2]
[356346322,1742314232519,-653.36348818,9.9e-05,2]
[356346323,1742314232529,-402.46176999,9.9e-05,2]
[356346324,1742314232539,-150.0,9.9e-05,2]
[356346325,1742314232549,-2.92326653,9.9e-05,2]
[356346326,1742314232562,-247.07673347,9.9e-05,2]
[356346327,1742314232572,-150.0,9.9e-05,2]
[356346328,1742314232582,-150.0,9.999e-05,2]
[356346329,1742314232593,-205.69120639,9.999e-05,2]
[356346330,1742314232609,-94.30879361,9.999e-05,2]
[356346331,1742314232618,-155.53582344,9.999e-05,2]
[356346332,1742314232629,-170.60985586,9.999e-05,2]
[356346333,1742314232639,-548.0,0.0001,2]
[356346334,1742314232649,-163.43257006,0.0001,2]
[356346335,1742314232658,-863.94295703,0.0001,2]
[356346336,1742314232671,-294.33656805,0.0001,2]
[356346382,1742314233411,-475.22000005,0.0001,2]
[356346384,1742314233424,-413.27807374,0.0001,2]
[356346386,1742314233440,-3374.1999674,0.0001,2]
[356346425,1742314238276,-1994.00948095,0.0001,2]
[356346426,1742314238288,-377.21535972,0.0001,2]
[356346441,1742314240561,-17083.10363546,0.0001,2]
[356346442,1742314240572,-19756.21079874,0.0001,2]
[356346479,1742314243368,-226729.84907129,0.0001,2]
[356346539,1742314246499,-500.0,0.0001,2]
[356346540,1742314246510,-329.63,0.0001,2]
[356346541,1742314246524,-107326.29028686,0.0001,2]
[356346542,1742314246538,-111430.88157725,0.0001,2]
[356346561,1742315019299,141410.34703807,0.00022,120]
[356346565,1742315133721,150.5,0.0002191,120]
[356346566,1742315137391,1974.91270008,8e-05,2]
[356346570,1742315199859,1388.89,8.219e-05,2]
[356346572,1742315228999,1200.0,9.5e-05,3]
[356346573,1742315231114,2400.0,9.6e-05,3]
[356346574,1742315233253,887.06365538,9.7e-05,3]
[356346575,1742315233283,2712.93634462,9.7e-05,3]
[356346576,1742315235365,4900.0,9.8e-05,3]
[356346577,1742315237476,6100.0,9.9e-05,3]
[356346578,1742315239578,1200.0,0.0001,3]
[356346585,1742315297430,-1012.77263419,9e-05,2]
[356346587,1742315297460,-918.3668223,9.14e-05,2]
[356346612,1742315431466,-148.27278543,9.14e-05,2]
[356346613,1742315431476,-235.92855313,9.158e-05,2]
[356346614,1742315431784,-14.07144687,9.158e-05,2]
[356346615,1742315431794,-300.0,9.174e-05,2]
[356346616,1742315431803,-8662.28694429,9.175e-05,2]
[356346617,1742315431816,-407.0,9.175e-05,2]
[356346618,1742315431838,-289.89542101,9.175e-05,2]
[356346850,1742315437714,-4737.10475701,9.175e-05,2]
[356346852,1742315437726,-4020.65816431,9.175e-05,2]
[356346854,1742315437738,-300.0,9.175e-05,2]
[356346856,1742315437750,-334.15395463,9.175e-05,2]
[356346858,1742315437762,-822.49017547,9.175e-05,2]
[356346861,1742315437774,-4326.41058328,9.175e-05,2]
[356346863,1742315437784,-250.0,9.319e-05,2]
[356346865,1742315437793,-195.6,9.351e-05,2]
[356346867,1742315437803,-1000.0,9.442e-05,2]
[356346869,1742315437812,-150.03,9.487e-05,2]
[356346871,1742315437824,-170.89,9.53e-05,2]
[356346872,1742315437833,-532.0,9.644e-05,2]
[356346874,1742315437844,-197.5729162,9.7e-05,2]
[356346876,1742315437854,-860.43,9.7e-05,2]
[356346878,1742315437864,-150.0,9.85e-05,2]
[356346880,1742315437874,-950.22471323,9.899e-05,2]
[356346882,1742315437883,-293.74917059,9.899e-05,2]
[356346886,1742315437893,-500.0,9.899e-05,2]
[356346890,1742315437902,-183.32432167,9.899e-05,2]
[356346894,1742315437911,-500.0,9.899e-05,2]
[356346897,1742315437921,-301.82253187,9.899e-05,2]
[356346900,1742315437931,-500.0,9.899e-05,2]
[356346903,1742315437940,-500.0,9.899e-05,2]
[356346907,1742315437950,-500.0,9.899e-05,2]
[356346911,1742315437960,-500.0,9.899e-05,2]
[356346914,1742315437970,-500.0,9.899e-05,2]
[356346917,1742315437981,-505.27465842,9.899e-05,2]
[356346920,1742315437991,-500.0,9.899e-05,2]
[356346922,1742315438001,-500.0,9.899e-05,2]
[356346925,1742315438011,-550.0,9.899e-05,2]
[356346928,1742315438021,-506.95106793,9.9e-05,2]
[356346931,1742315438043,-330.562232,9.9e-05,2]
[356346933,1742315438054,-112.7114133,9.9e-05,2]
[356346935,1742315438064,-163.43257006,9.9e-05,2]
[356346937,1742315438074,-5413.6082429,9.9e-05,2]
[356346939,1742315438086,-54317.70709009,9.9e-05,2]
[356346941,1742315438095,-159.7865,9.9e-05,2]
[356346943,1742315438105,-709.9699,9.9e-05,2]
[356346945,1742315438114,-855.6027,9.9e-05,2]
[356346947,1742315438124,-1971.1557,9.9e-05,2]
[356346949,1742315438134,-2047.7318,9.9e-05,2]
[356346951,1742315438144,-1250959.98935893,9.9e-05,2]
[356346953,1742315438153,-5000.0,9.9e-05,2]
[356346954,1742315438164,-9906.6230323,9.91e-05,2]
[356346955,1742315438174,-5503.15784767,9.911e-05,2]
[356346956,1742315438184,-150.0,9.961e-05,2]
[356346957,1742315438196,-259.72861704,9.973e-05,2]
[356346959,1742315438205,-184.25084942,9.973e-05,2]
[356346960,1742315438215,-302.35940964,9.99e-05,2]
[356346961,1742315438224,-510.05601672,9.99e-05,2]
[356346962,1742315438235,-875.609,9.999e-05,2]
[356346963,1742315438245,-154362.57588779,0.0001,2]
[356346964,1742315438254,-53362.2292025,0.0001,2]
[356346965,1742315438263,-1857.05572766,0.0001,2]
[356346966,1742315438274,-2629.53447235,0.0001,2]
[356346967,1742315438284,-116029.5387242,0.0001,2]
[356346968,1742315438294,-1843.28,0.0001,2]
[356346969,1742315438303,-338260.13183433,0.0001,2]
[356346970,1742315438312,-471.969,0.0001,2]
[356346971,1742315438323,-500.0,0.0001,2]
[356346972,1742315438332,-50000.0,0.0001,2]
[356346973,1742315438342,-150.0,0.0001,2]
[356346974,1742315438351,-636.46646802,0.0001,2]
[356346975,1742315438361,-150.0,0.0001,2]
[356346976,1742315438371,-150.0,0.0001,2]
[356346977,1742315438380,-1196.52774587,0.0001,2]
[356346978,1742315438390,-1419.0,0.0001,2]
[356346979,1742315438401,-571.0,0.0001,2]
[356346980,1742315438410,-3435.92489311,0.0001,2]
[356346981,1742315438420,-787.0,0.0001,2]
[356346982,1742315438429,-1272.673,0.0001,2]
[356346983,1742315438439,-907.0,0.0001,2]
[356346984,1742315438448,-4081.0,0.0001,2]
[356346985,1742315438458,-1429.0,0.0001,2]
[356346986,1742315438468,-541.961,0.0001,2]
[356346987,1742315438477,-1654.11523843,0.0001,2]
[356346988,1742315438487,-150.0,0.0001,2]
[356346989,1742315438497,-948.47466735,0.0001,2]
[356346990,1742315438506,-230887.51372211,0.0001,2]
[356346991,1742315438519,-164712.94139298,0.0001,2]
[356346992,1742315438531,-468.40396298,0.0001,2]
[356347138,1742315441101,535.34119,0.0001,3]
[356347139,1742315442058,-2244968.95940569,0.0001,2]
[356347140,1742315442074,-168501.96000062,0.0001,2]
[356347141,1742315442112,-4644.60244284,0.0001,2]
[356347165,1742315445595,-609.53823585,0.0001,2]
[356347166,1742315445661,-430.18684934,0.0001,2]
[356347167,1742315445711,-663.02749647,0.0001,2]
[356347168,1742315445784,-284332.3713224,0.0001,2]
[356347169,1742315445797,-726.65367492,0.0001,2]
[356347170,1742315445821,-471.96143485,0.0001,2]
[356347190,1742316415048,572.7977416,0.00013,15]
[356347194,1742316440647,200.0,9.8e-05,3]
[356347195,1742316442794,500.0,9.9e-05,3]
[356347196,1742316444972,700.0,0.0001,3]
[356347208,1742316631707,-250.0,9e-05,2]
[356347209,1742316631717,-1916.325131,9e-05,2]
[356347210,1742316631727,-250.0,9.022e-05,2]
[356347211,1742316631737,-681.09,9.2e-05,2]
[356347212,1742316631747,-1371.7,9.651e-05,2]
[356347213,1742316631756,-197.5729162,9.7e-05,2]
[356347214,1742316631766,-500.0,9.753e-05,2]
[356347215,1742316631776,-711.55,9.8e-05,2]
[356347216,1742316631786,-606.5294,9.9e-05,2]
[356347217,1742316631796,-150.0,9.9e-05,2]
[356347218,1742316631806,-150.0,9.9e-05,2]
[356347219,1742316631818,-250.0,9.9e-05,2]
[356347220,1742316631827,-150.0,9.9e-05,2]
[356347221,1742316631837,-250.0,9.9e-05,2]
[356347222,1742316631847,-205.62441941,9.999e-05,2]
[356347223,1742316631856,-211.27577231,9.999e-05,2]
[356347224,1742316631866,-500.0,9.999e-05,2]
[356347225,1742316631876,-500.0,9.999e-05,2]
[356347226,1742316631885,-161.17026054,9.999e-05,2]
[356347227,1742316631897,-338.82973946,9.999e-05,2]
[356347228,1742316631907,-338.69226089,9.999e-05,2]
[356347229,1742316631917,-500.0,9.999e-05,2]
[356347230,1742316631927,-500.0,9.999e-05,2]
[356347231,1742316631936,-500.0,9.999e-05,2]
[356347232,1742316631946,-300.0,9.999e-05,2]
[356347233,1742316631955,-666.0,0.0001,2]
[356347234,1742316632234,-3725.21443399,0.0001,2]
[356347235,1742316632252,-1548.12353757,0.0001,2]
[356347236,1742316632263,-4586.06303229,0.0001,2]
[356347237,1742316632275,-1448.30332567,0.0001,2]
[356347238,1742316632286,-398.05286501,0.0001,2]
[356347239,1742316632298,-524.92075,0.0001,2]
[356347240,1742316632310,-525.27545267,0.0001,2]
[356347241,1742316632322,-3759.34505082,0.0001,2]
[356347242,1742316632334,-4853.80134408,0.0001,2]
[356347243,1742316632347,-486.90482947,0.0001,2]
[356347244,1742316632359,-297.04785907,0.0001,2]
[356347245,1742316637589,-472.4999987,0.0001,2]
[356347246,1742316637602,-1713.56068351,0.0001,2]
[356347247,1742316637642,-12256.12115135,0.0001,2]
[356347248,1742316637801,-416.94616708,0.0001,2]
[356347396,1742316644757,-603.0,0.0001,2]
[356347397,1742316644767,-1852.54956873,0.0001,2]
[356347410,1742317805453,150.0,9.992e-05,7]
[356347415,1742317831912,-250.0,9e-05,2]
[356347416,1742317831923,-250.0,9.161e-05,2]
[356347417,1742317831933,-1326.63,9.322e-05,2]
[356347418,1742317831942,-250.0,9.432e-05,2]
[356347419,1742317831955,-266.29577586,9.73e-05,2]
[356347420,1742317831965,-210.40423331,9.8e-05,2]
[356347421,1742317832044,-358.83576669,9.8e-05,2]
[356347422,1742317832053,-1492.7718,9.9e-05,2]
[356347423,1742317832063,-150.0,9.9e-05,2]
[356347424,1742317832073,-150.0,9.9e-05,2]
[356347425,1742317832082,-150.0,9.9e-05,2]
[356347426,1742317832091,-250.0,9.9e-05,2]
[356347427,1742317832101,-250.17964307,9.973e-05,2]
[356347428,1742317832111,-862.28278107,9.989e-05,2]
[356347429,1742317832122,-1768.82596408,9.989e-05,2]
[356347430,1742317832149,-6565.48227919,9.989e-05,2]
[356347431,1742317832161,-250.54459124,9.989e-05,2]
[356347432,1742317832172,-746.59132339,9.989e-05,2]
[356347433,1742317832183,-458.50096497,9.989e-05,2]
[356347469,1742317837726,-478.06027892,9.9e-05,2]
[356347656,1742317839920,-1000.39468402,9.9e-05,2]
[356347684,1742317840291,-71.87813706,9.9e-05,2]
[356347685,1742317840302,-6359.68290161,9.989e-05,2]
[356347686,1742317840312,-5287.53236144,9.999e-05,2]
[356347717,1742317843059,-4000.0,9.999e-05,2]
[356347718,1742317843166,-4763.49836583,9.999e-05,2]
[356347938,1742317869860,400.0,9.8e-05,3]
[356347939,1742317871971,900.0,9.9e-05,3]
[356347940,1742317875018,1400.0,0.0001,3]
[356347944,1742318637655,1302.62,8.219e-05,2]
[356347953,1742318841372,300.0,9.3e-05,3]
[356347954,1742318843663,600.0,9.4e-05,3]
[356347955,1742318845565,1000.0,9.5e-05,3]
[356347961,1742318847678,1300.0,9.6e-05,3]
[356347962,1742318849795,1600.0,9.7e-05,3]
[356347963,1742318851926,300.0,9.8e-05,3]
[356347964,1742318854815,300.0,9.9e-05,3]
[356347965,1742318856148,300.0,0.0001,3]
[356347992,1742319032057,-154.69,9.296e-05,2]
[356347994,1742319032068,-250.0,9.308e-05,2]
[356347996,1742319032078,-154.69,9.32e-05,2]
[356347997,1742319032088,-154.69,9.345e-05,2]
[356347998,1742319032098,-250.0,9.345e-05,2]
[356347999,1742319032108,-154.69,9.369e-05,2]
[356348000,1742319032118,-154.69,9.394e-05,2]
[356348001,1742319032127,-200.0,9.413e-05,2]
[356348002,1742319032137,-154.69,9.418e-05,2]
[356348003,1742319032147,-154.69,9.443e-05,2]
[356348004,1742319032157,-154.69,9.467e-05,2]
[356348005,1742319032167,-154.69,9.492e-05,2]
[356348006,1742319032177,-154.69,9.516e-05,2]
[356348007,1742319032186,-4815.96054009,9.523e-05,2]
[356348008,1742319032209,-5299.00910648,9.523e-05,2]
[356348009,1742319032330,-1027.55453395,9.523e-05,2]
[356348010,1742319032342,-392.91999999,9.523e-05,2]
[356348011,1742319032354,-12364.55581949,9.523e-05,2]
[356348012,1742319032364,-154.69,9.541e-05,2]
[356348013,1742319032374,-154.69,9.565e-05,2]
[356348014,1742319032384,-154.69,9.59e-05,2]
[356348015,1742319032396,-1536.41,9.6e-05,2]